fUST/lending_fUST_20260419
["ID","MTS","AMOUNT","RATE_DAILY","PERIOD"]
[420807916,1776541838327,-155.0,0.00013698,2]
[420807917,1776541838337,-543.81,0.00013698,2]
[420807918,1776541838346,-543.81,0.00013698,2]
[420807919,1776541838355,-543.81,0.00013698,2]
[420807920,1776541838364,-543.81,0.00013698,2]
[420807921,1776541838374,-543.81,0.00013698,2]
[420807922,1776541838383,-543.81,0.00013698,2]
[420807923,1776541838393,-543.81,0.00013698,2]
[420807924,1776541838402,-543.81,0.00013698,2]
[420807925,1776541838411,-543.81,0.00013698,2]
[420807926,1776541838421,-543.81,0.00013698,2]
[420807927,1776541838431,-543.81,0.00013698,2]
[420807928,1776541838441,-543.81,0.00013698,2]
[420807929,1776541838450,-543.81,0.00013698,2]
[420807930,1776541838459,-318.63521723,0.00013698,2]
[420807931,1776541838469,-500.0,0.00013698,2]
[420807932,1776541838478,-500.0,0.00013698,2]
[420807933,1776541838487,-373.60259353,0.00013698,2]
[420807934,1776541838497,-500.0,0.00013698,2]
[420807935,1776541838506,-500.0,0.00013698,2]
[420807936,1776541838515,-500.0,0.00013698,2]
[420807937,1776541838524,-432.66867654,0.00013698,2]
[420807938,1776541838540,-67.33132346,0.00013698,2]
[420807939,1776541838550,-500.0,0.00013698,2]
[420807940,1776541838559,-500.0,0.00013698,2]
[420807941,1776541838569,-500.0,0.00013698,2]
[420807942,1776541838578,-500.0,0.00013698,2]
[420807943,1776541838588,-180.0,0.00013699,2]
[420807944,1776541838597,-1248.56472684,0.00013699,2]
[420807989,1776541846484,-250.0,0.0001359,2]
[420809944,1776543032288,-654.5977289,7.153e-05,2]
[420809946,1776543032341,-4345.4022711,7.153e-05,2]
[420809947,1776543032351,-3709.39879811,7.225e-05,2]
[420809948,1776543032361,-516.0,7.225e-05,2]
[420809949,1776543032370,-284.0,7.298e-05,2]
[420809950,1776543032380,-287.0,7.298e-05,2]
[420809951,1776543032389,-155.69836186,7.448e-05,2]
[420809952,1776543032399,-1571.72016588,7.6e-05,2]
[420810006,1776543040755,-565.96990129,7.6e-05,2]
[420810007,1776543040766,-3709.39879811,7.6e-05,2]
[420810008,1776543040809,-442.58507751,7.6e-05,2]
[420810032,1776543043452,-822.90335586,7.6e-05,2]
[420810053,1776543046677,-12869.53990665,7.6e-05,2]
[420810054,1776543046688,-20189.08937966,7.6e-05,2]
[420810055,1776543046742,-39514.13377247,7.6e-05,2]
[420810201,1776544096894,257.27,0.00023615,120]
[420810244,1776544239030,-1003.44975964,6.603e-05,2]
[420810245,1776544239039,-514.0,6.603e-05,2]
[420810246,1776544239050,-5000.0,6.67e-05,2]
[420810247,1776544239061,-165.57324559,6.908e-05,2]
[420810248,1776544239071,-1200.0,7.599e-05,2]
[420810249,1776544239081,-23389.37568427,7.6e-05,2]
[420810258,1776544241009,-643.78105749,7.6e-05,2]
[420810261,1776544241021,-11279.79982235,7.6e-05,2]
[420810263,1776544241031,-623.83341637,7.855e-05,2]
[420810265,1776544241041,-8662.0102955,7.857e-05,2]
[420810267,1776544241050,-1050.0,8e-05,2]
[420810269,1776544241060,-195.37642979,8.908e-05,2]
[420810271,1776544241069,-211.6323795,9.201e-05,2]
[420810273,1776544241078,-491.3820196,9.201e-05,2]
[420810275,1776544241088,-160.0,9.353e-05,2]
[420810277,1776544241097,-1966.16073847,0.0001007,2]
[420810279,1776544241106,-4419.43779989,0.0001007,2]
[420810281,1776544241116,-491.3820196,0.00010271,2]
[420810283,1776544241125,-211.6323795,0.00010319,2]
[420810285,1776544241134,-225.179614,0.00010908,2]
[420810287,1776544241143,-187.0,0.00010959,3]
[420810289,1776544241152,-1157.01292166,0.00010959,2]
[420810386,1776544243742,-7470.39449217,0.00010959,2]
[420810397,1776544247002,-6752.96618617,0.00010959,2]
[420810398,1776544247012,-150.0,0.0001096,2]
[420810399,1776544247021,-150.0,0.0001126,2]
[420810400,1776544247030,-151.0,0.00011281,2]
[420810401,1776544247040,-151.0,0.00011281,2]
[420810402,1776544247049,-491.3820196,0.00011341,2]
[420810403,1776544247059,-211.6323795,0.00011437,2]
[420810404,1776544247068,-150.0,0.0001156,2]
[420810405,1776544247078,-225.17,0.0001156,2]
[420810406,1776544247087,-150.0,0.0001186,2]
[420810407,1776544247097,-218.7221035,0.00012158,2]
[420810408,1776544247107,-195.9491867,0.00012158,2]
[420810409,1776544247116,-150.0,0.0001216,2]
[420810410,1776544247125,-271.34621327,0.00012363,2]
[420810411,1776544247135,-1084.29946821,0.00012363,2]
[420810412,1776544247144,-187.0,0.00012385,2]
[420810413,1776544247154,-491.3820196,0.00012411,2]
[420810414,1776544247163,-150.0,0.0001246,2]
[420810415,1776544247172,-187.75,0.0001246,2]
[420810416,1776544247182,-211.6323795,0.00012556,2]
[420810417,1776544247192,-150.34,0.0001276,2]
[420810418,1776544247203,-151.0,0.000129,2]
[420810419,1776544247213,-8749.56654383,0.000129,2]
[420810420,1776544247225,-8749.56654378,0.000129,2]
[420810421,1776544247235,-8749.56654378,0.000129,2]
[420810422,1776544247245,-254.9827982,0.00012908,2]
[420810423,1776544247256,-455.0,0.00012979,2]
[420810424,1776544247265,-1087.79341051,0.00013013,2]
[420810425,1776544247274,-455.0,0.00013023,2]
[420810427,1776544247283,-455.0,0.00013117,2]
[420810429,1776544247293,-500.0,0.00013194,2]
[420810431,1776544247302,-271.33772646,0.00013194,2]
[420810433,1776544247312,-500.0,0.00013194,2]
[420810435,1776544247321,-500.0,0.00013194,2]
[420810437,1776544247331,-500.0,0.00013194,2]
[420810439,1776544247341,-500.0,0.00013194,2]
[420810441,1776544247350,-500.0,0.00013194,2]
[420810443,1776544247359,-500.0,0.00013194,2]
[420810445,1776544247369,-500.0,0.00013194,2]
[420810447,1776544247379,-500.0,0.00013194,2]
[420810449,1776544247388,-500.0,0.00013194,2]
[420810451,1776544247398,-500.0,0.00013194,2]
[420810453,1776544247408,-386.08018447,0.00013194,2]
[420810456,1776544247418,-8749.56654378,0.00013195,2]
[420810457,1776544247427,-455.0,0.0001326,2]
[420810459,1776544247436,-151.0,0.000133,2]
[420810462,1776544247446,-455.0,0.00013328,2]
[420810464,1776544247456,-180.2108709,0.00013365,14]
[420810466,1776544247465,-455.0,0.00013371,2]
[420810468,1776544247474,-455.0,0.00013423,2]
[420810470,1776544247484,-455.0,0.00013436,2]
[420810472,1776544247493,-192.192,0.00013489,2]
[420810474,1776544247503,-455.0,0.00013498,2]
[420810476,1776544247512,-455.0,0.00013512,2]
[420810481,1776544247716,-800.0,0.00013641,2]
[420810482,1776544247727,-455.0,0.00013659,2]
[420810483,1776544247737,-265.84065957,0.00013673,2]
[420810484,1776544247746,-500.0,0.00013673,2]
[420810485,1776544247755,-500.0,0.00013673,2]
[420810486,1776544247767,-4105.0,0.00013674,2]
[420810487,1776544247776,-455.0,0.00013681,2]
[420810488,1776544247787,-5822.5267664,0.0001369,7]
[420810489,1776544247796,-5822.5267664,0.0001369,7]
[420810490,1776544247806,-5822.5267664,0.0001369,7]
[420810491,1776544247816,-5822.5267664,0.0001369,7]
[420810492,1776544247825,-500.0,0.00013698,2]
[420810493,1776544247834,-500.0,0.00013698,2]
[420810494,1776544247843,-119.48036189,0.00013698,2]
[420810495,1776544323273,308.41720184,0.00023615,120]
[420810521,1776545431771,-1037.70074997,6.962e-05,2]
[420810523,1776545431781,-5000.0,7.032e-05,2]
[420810525,1776545431790,-156.11676523,7.139e-05,2]
[420810527,1776545431799,-184.21778297,9.139e-05,2]
[420810529,1776545431808,-6.23165622,0.00010959,3]
[420810531,1776545431823,-160.76834378,0.00010959,3]
[420810533,1776545431833,-212.31880071,0.00011139,2]
[420810535,1776545431842,-385.71931137,0.00012362,2]
[420810630,1776545438191,-5000.0,0.00012239,2]
[420810631,1776545438200,-236.89323919,0.00012362,2]
[420810632,1776545438210,-2487.95975203,0.00012362,2]
[420810633,1776545438220,-161.523221,0.00012801,2]
[420810634,1776545438229,-325.2847064,0.00012894,2]
[420810635,1776545438238,-240.41981845,0.00013139,2]
[420810636,1776545438248,-1557.64616385,0.000134,2]
[420810637,1776545438258,-3900.10937376,0.000134,2]
[420810638,1776545438267,-3538.13249182,0.000134,2]
[420810639,1776545438276,-316.15721436,0.000134,2]
[420810640,1776545438285,-500.0,0.00013473,2]
[420810641,1776545438295,-500.0,0.00013473,2]
[420810642,1776545438304,-500.0,0.00013473,2]
[420810643,1776545438313,-259.19525566,0.00013473,2]
[420810644,1776545438323,-180.15930035,0.00013473,2]
[420810645,1776545438331,-500.0,0.00013473,2]
[420810646,1776545438341,-500.0,0.00013473,2]
[420810647,1776545438349,-4374.78327189,0.00013473,2]
[420810648,1776545438359,-182.21774351,0.00013498,2]
[420810649,1776545438368,-500.0,0.00013498,2]
[420810650,1776545438377,-500.0,0.00013498,2]
[420810651,1776545438386,-500.0,0.00013498,2]
[420810652,1776545438395,-500.0,0.00013498,2]
[420810653,1776545438404,-500.0,0.00013498,2]
[420810654,1776545438412,-500.0,0.00013498,2]
[420810655,1776545438422,-500.0,0.00013498,2]
[420810656,1776545438431,-500.0,0.00013498,2]
[420810657,1776545438440,-500.0,0.00013498,2]
[420810658,1776545438449,-500.0,0.00013498,2]
[420810659,1776545438458,-500.0,0.00013498,2]
[420810660,1776545438467,-500.0,0.00013498,2]
[420810661,1776545438476,-500.0,0.00013498,2]
[420810662,1776545438486,-500.0,0.00013498,2]
[420810663,1776545438496,-500.0,0.00013498,2]
[420810664,1776545438505,-500.0,0.00013498,2]
[420810665,1776545438514,-500.0,0.00013498,2]
[420810666,1776545438523,-281.6050569,0.00013498,2]
[420810667,1776545438532,-500.0,0.00013498,2]
[420810668,1776545438541,-200.0,0.00013498,2]
[420810669,1776545438551,-500.0,0.00013498,2]
[420810670,1776545438560,-500.0,0.00013498,2]
[420810671,1776545438570,-500.0,0.00013498,2]
[420810672,1776545438580,-500.0,0.00013498,2]
[420810673,1776545438589,-189.93640853,0.00013498,2]
[420810674,1776545438598,-500.0,0.00013498,2]
[420810675,1776545438607,-500.0,0.00013498,2]
[420810676,1776545438617,-500.0,0.00013498,2]
[420810677,1776545438626,-500.0,0.00013498,2]
[420810678,1776545438636,-500.0,0.00013498,2]
[420810679,1776545438645,-620.25612913,0.00013498,2]
[420810680,1776545438655,-500.0,0.00013498,2]
[420810681,1776545438665,-500.0,0.00013498,2]
[420810682,1776545438675,-500.0,0.00013498,2]
[420810683,1776545438684,-500.0,0.00013498,2]
[420810684,1776545438694,-500.0,0.00013498,2]
[420810685,1776545438704,-66776.46454258,0.00013499,2]
[420810686,1776545438713,-120209.73351243,0.00013499,2]
[420810707,1776545446108,-4476.95,0.00013499,2]
[420810708,1776545446163,-402008.81749487,0.00013499,2]
[420810709,1776545446172,-151.0,0.00013499,2]
[420810710,1776545446182,-153.754,0.00013573,2]
[420810711,1776545446191,-151.0,0.000136,2]
[420810712,1776545446200,-151.0,0.000136,2]
[420810713,1776545446210,-38000.0,0.00013655,3]
[420810714,1776545446219,-151.0,0.00013655,2]
[420810715,1776545446228,-38000.0,0.00013664,3]
[420810716,1776545446237,-151.0,0.00013664,2]
[420810717,1776545446246,-29404.41502695,0.00013673,3]
[420810738,1776546062153,-358.91189904,5e-05,2]
[420810739,1776546078957,-235.63927721,9.404e-05,5]
[420810740,1776546078986,-1140.19900774,9.879e-05,2]
[420810741,1776546108183,-446.60765093,9.879e-05,2]
[420810778,1776546632084,-344.74000008,9.377e-05,2]
[420810832,1776546638279,-3655.25999992,9.377e-05,2]
[420810833,1776546638288,-1381.03911575,9.472e-05,2]
[420810834,1776546638385,-3618.96088425,9.472e-05,2]
[420810835,1776546638394,-1200.0,9.567e-05,2]
[420810836,1776546638404,-167.37806785,9.617e-05,2]
[420810837,1776546638414,-160.0,9.843e-05,2]
[420810838,1776546638424,-185.0,0.00010959,3]
[420810839,1776546638433,-15380.3736,0.00011402,2]
[420810840,1776546638442,-197.50612006,0.00011617,2]
[420810841,1776546638451,-184.0,0.00012005,2]
[420810842,1776546638461,-325.1329462,0.00012073,2]
[420810843,1776546638470,-366.25268789,0.00012182,2]
[420810844,1776546638479,-208.33561181,0.00012182,2]
[420810845,1776546638488,-832.50910478,0.00012182,2]
[420810846,1776546638497,-1408.0,0.00012387,2]
[420810847,1776546638507,-645.0,0.00012387,2]
[420810848,1776546638516,-5000.0,0.00012824,2]
[420810849,1776546638525,-455.1154234,0.00012895,2]
[420810850,1776546638534,-2692.7,0.00013,2]
[420810851,1776546638543,-1957.856,0.00013013,2]
[420810852,1776546638552,-2150.738,0.00013013,2]
[420810853,1776546638562,-225.46210187,0.00013068,2]
[420810854,1776546638571,-376.582444,0.000132,2]
[420810855,1776546638580,-835.66581213,0.000132,2]
[420810856,1776546638589,-224.60903263,0.000132,2]
[420810857,1776546638599,-245.29543045,0.00013224,2]
[420810858,1776546638608,-194.21395973,0.00013273,2]
[420810859,1776546638617,-4105.0,0.00013282,2]
[420810860,1776546638628,-500.0,0.00013298,2]
[420810861,1776546638638,-375.30187633,0.00013298,2]
[420810862,1776546638649,-500.0,0.00013298,2]
[420810863,1776546638659,-500.0,0.00013298,2]
[420810864,1776546638668,-434.17929039,0.00013298,2]
[420810865,1776546638677,-500.0,0.00013298,2]
[420810866,1776546638686,-500.0,0.00013298,2]
[420810867,1776546638695,-500.0,0.00013298,2]
[420810868,1776546638705,-500.0,0.00013298,2]
[420810869,1776546638715,-500.0,0.00013298,2]
[420810870,1776546638725,-500.0,0.00013298,2]
[420810871,1776546638734,-500.0,0.00013298,2]
[420810872,1776546638743,-275.73389521,0.00013298,2]
[420810873,1776546638752,-194.2139597,0.000133,2]
[420810874,1776546638761,-194.2139597,0.00013327,2]
[420810875,1776546638771,-194.2139597,0.00013353,2]
[420810876,1776546638780,-500.0,0.00013373,2]
[420810877,1776546638789,-500.0,0.00013373,2]
[420810878,1776546638800,-234.15934043,0.00013373,2]
[420810879,1776546638809,-194.2139597,0.0001338,2]
[420810880,1776546638856,-151.0,0.00013415,2]
[420810881,1776546639063,-303.10151341,0.00013415,2]
[420810882,1776546639074,-445.202766,0.00013415,2]
[420810883,1776546639084,-162.380719,0.00013415,2]
[420810884,1776546639094,-537.6845,0.00013415,2]
[420810885,1776546639103,-500.0,0.00013415,2]
[420810886,1776546639112,-352316.73753028,0.00013423,2]
[420810887,1776546639122,-800.0,0.0001348,2]
[420810888,1776546639131,-800.0,0.00013485,2]
[420810889,1776546639140,-260.763,0.00013489,2]
[420810890,1776546639150,-187.652,0.00013489,2]
[420810891,1776546639159,-675.73232544,0.00013498,2]
[420810892,1776546639168,-237.22239878,0.00013498,2]
[420810893,1776546639178,-947.94070553,0.00013498,2]
[420810894,1776546639188,-20223.1257566,0.00013523,2]
[420810895,1776546639198,-154.425852,0.00013523,2]
[420810896,1776546639207,-2230.315306,0.00013561,2]
[420810897,1776546639218,-151.0,0.000136,2]
[420810898,1776546639228,-151.0,0.000136,2]
[420810899,1776546639238,-227.63417228,0.00013617,2]
[420810900,1776546639247,-600.0,0.00013639,2]
[420810901,1776546639257,-500.0,0.00013664,2]
[420810902,1776546639267,-8595.58497305,0.00013673,3]
[420810903,1776546639276,-500.95495457,0.00013673,2]
[420810904,1776546639285,-500.0,0.00013673,2]
[420810905,1776546639295,-500.0,0.00013673,2]
[420810906,1776546639304,-500.0,0.00013673,2]
[420810907,1776546639313,-500.0,0.00013673,2]
[420810908,1776546639323,-500.0,0.00013673,2]
[420810909,1776546639333,-38000.0,0.00013681,3]
[420810910,1776546639342,-500.0,0.00013689,2]
[420810911,1776546639352,-38000.0,0.0001369,3]
[420810912,1776546639362,-155.0,0.00013698,2]
[420810913,1776546639371,-155.0,0.00013698,2]
[420810914,1776546639382,-155.0,0.00013698,2]
[420810915,1776546639391,-500.0,0.00013698,2]
[420810916,1776546639401,-500.0,0.00013698,2]
[420810917,1776546639410,-500.0,0.00013698,2]
[420810918,1776546639419,-179.9820018,0.00013699,2]
[420810919,1776546639428,-157.693036,0.00013699,2]
[420810920,1776546639438,-1000.0,0.00013699,2]
[420810921,1776546639447,-1932.770599,0.00013699,2]
[420810922,1776546639456,-1932.770599,0.00013699,2]
[420810923,1776546639465,-1932.770599,0.00013699,2]
[420810924,1776546639474,-1932.770599,0.00013699,2]
[420810925,1776546639483,-304.264,0.00013699,2]
[420810926,1776546639493,-304.264,0.00013699,2]
[420810927,1776546639502,-304.264,0.00013699,2]
[420810928,1776546639511,-304.264,0.00013699,2]
[420810929,1776546639520,-1084.531833,0.00013699,2]
[420810930,1776546639529,-3924.951877,0.00013699,2]
[420810931,1776546639539,-3924.951877,0.00013699,2]
[420810932,1776546639547,-3924.951877,0.00013699,2]
[420810933,1776546639557,-3924.951877,0.00013699,2]
[420810934,1776546639566,-6775.713522,0.00013699,2]
[420810935,1776546639575,-6775.713522,0.00013699,2]
[420810936,1776546639585,-773.726343,0.00013699,2]
[420810937,1776546639594,-6775.713522,0.00013699,2]
[420810938,1776546639603,-773.726343,0.00013699,2]
[420810939,1776546639612,-6775.713522,0.00013699,2]
[420810940,1776546639621,-773.726343,0.00013699,2]
[420810941,1776546639631,-500.0,0.00013699,2]
[420810942,1776546639641,-500.0,0.00013699,2]
[420810943,1776546639651,-500.0,0.00013699,2]
[420810944,1776546639660,-500.0,0.00013699,2]
[420810945,1776546639669,-500.0,0.00013699,2]
[420810946,1776546639678,-500.0,0.00013699,2]
[420810947,1776546639687,-500.0,0.00013699,2]
[420810948,1776546639697,-308.1512606,0.00013699,2]
[420810949,1776546639706,-288.02639668,0.00013699,2]
[420810950,1776546639715,-500.0,0.00013699,2]
[420810951,1776546639724,-500.0,0.00013699,2]
[420810952,1776546639734,-500.0,0.00013699,2]
[420810953,1776546639743,-500.0,0.00013699,2]
[420810954,1776546639752,-500.0,0.00013699,2]
[420810955,1776546639761,-500.0,0.00013699,2]
[420810956,1776546639771,-1000.0,0.00013699,2]
[420810957,1776546639780,-38000.0,0.00013699,3]
[420810958,1776546639789,-1932.770599,0.00013699,2]
[420810959,1776546639799,-1932.770599,0.00013699,2]
[420810960,1776546639808,-1932.770599,0.00013699,2]
[420810962,1776546639818,-1932.770599,0.00013699,2]
[420810963,1776546639827,-1932.770599,0.00013699,2]
[420810964,1776546639836,-1932.770599,0.00013699,2]
[420810965,1776546639845,-1932.770599,0.00013699,2]
[420810966,1776546639854,-1932.770599,0.00013699,2]
[420810967,1776546639863,-1932.770599,0.00013699,2]
[420810968,1776546639872,-1932.770599,0.00013699,2]
[420810969,1776546639881,-1932.770599,0.00013699,2]
[420810970,1776546639890,-1932.770599,0.00013699,2]
[420810971,1776546639899,-1932.770599,0.00013699,2]
[420810972,1776546639908,-1932.770599,0.00013699,2]
[420810973,1776546639921,-1932.770599,0.00013699,2]
[420810974,1776546639930,-1932.770596,0.00013699,2]
[420810975,1776546639939,-500.0,0.00013699,2]
[420810976,1776546639948,-500.0,0.00013699,2]
[420810977,1776546639958,-185.28973093,0.00013699,2]
[420810978,1776546639968,-304.264,0.00013699,2]
[420810979,1776546639978,-304.264,0.00013699,2]
[420810980,1776546639987,-304.264,0.00013699,2]
[420810981,1776546639997,-304.264,0.00013699,2]
[420810982,1776546640006,-304.264,0.00013699,2]
[420810983,1776546640015,-304.264,0.00013699,2]
[420810984,1776546640024,-304.264,0.00013699,2]
[420810985,1776546640034,-304.264,0.00013699,2]
[420810986,1776546640043,-304.264,0.00013699,2]
[420810987,1776546640052,-304.264,0.00013699,2]
[420810988,1776546640062,-304.264,0.00013699,2]
[420810989,1776546640071,-304.264,0.00013699,2]
[420810990,1776546640080,-304.264,0.00013699,2]
[420810991,1776546640091,-304.264,0.00013699,2]
[420810992,1776546640101,-304.264,0.00013699,2]
[420810993,1776546640112,-304.264,0.00013699,2]
[420810994,1776546640124,-3924.951877,0.00013699,2]
[420810995,1776546640134,-3924.951877,0.00013699,2]
[420810996,1776546640145,-3924.951877,0.00013699,2]
[420810997,1776546640156,-3924.951877,0.00013699,2]
[420810998,1776546640165,-3924.951877,0.00013699,2]
[420810999,1776546640174,-3924.951877,0.00013699,2]
[420811000,1776546640184,-3924.951877,0.00013699,2]
[420811001,1776546640193,-3924.951877,0.00013699,2]
[420811002,1776546640202,-3924.951877,0.00013699,2]
[420811003,1776546640214,-3924.951877,0.00013699,2]
[420811004,1776546640223,-3924.951877,0.00013699,2]
[420811005,1776546640234,-3924.951877,0.00013699,2]
[420811006,1776546640243,-3924.951877,0.00013699,2]
[420811007,1776546640253,-3924.951877,0.00013699,2]
[420811008,1776546640262,-3924.951877,0.00013699,2]
[420811009,1776546640272,-3924.951885,0.00013699,2]
[420811010,1776546640282,-6775.713522,0.00013699,2]
[420811011,1776546640292,-6775.713522,0.00013699,2]
[420811012,1776546640301,-6775.713522,0.00013699,2]
[420811013,1776546640310,-6775.713522,0.00013699,2]
[420811014,1776546640320,-6775.713522,0.00013699,2]
[420811015,1776546640329,-6775.713522,0.00013699,2]
[420811016,1776546640339,-6775.713522,0.00013699,2]
[420811017,1776546640349,-6775.713522,0.00013699,2]
[420811018,1776546640358,-773.726343,0.00013699,2]
[420811019,1776546640367,-6775.713522,0.00013699,2]
[420811020,1776546640377,-773.726343,0.00013699,2]
[420811021,1776546640386,-6775.713522,0.00013699,2]
[420811022,1776546640396,-773.726343,0.00013699,2]
[420811023,1776546640405,-6775.713522,0.00013699,2]
[420811024,1776546640415,-773.726343,0.00013699,2]
[420811025,1776546640424,-6775.713522,0.00013699,2]
[420811026,1776546640433,-773.726343,0.00013699,2]
[420811027,1776546640443,-6775.713522,0.00013699,2]
[420811028,1776546640452,-773.726343,0.00013699,2]
[420811029,1776546640463,-6775.713522,0.00013699,2]
[420811030,1776546640472,-773.726343,0.00013699,2]
[420811031,1776546640481,-6775.713522,0.00013699,2]
[420811032,1776546640490,-773.726343,0.00013699,2]
[420811033,1776546640499,-6775.713532,0.00013699,2]
[420811034,1776546640513,-773.726343,0.00013699,2]
[420811035,1776546640523,-773.726343,0.00013699,2]
[420811036,1776546640535,-773.726343,0.00013699,2]
[420811037,1776546640544,-33313.0,0.000137,2]
[420811038,1776546640554,-151.0,0.000137,2]
[420811039,1776546640564,-151.0,0.000137,2]
[420811040,1776546640573,-151.0,0.000137,2]
[420811041,1776546640582,-151.0,0.000137,2]
[420811042,1776546640592,-151.0,0.000137,2]
[420811043,1776546640604,-151.0,0.000137,2]
[420811044,1776546640613,-152.0,0.00013702,7]
[420811045,1776546640623,-152.0,0.00013706,30]
[420811046,1776546640632,-500.0,0.00013711,2]
[420811047,1776546640642,-455.0,0.00013715,2]
[420811048,1776546640651,-253.430679,0.0001372,2]
[420811049,1776546640661,-196.600769,0.0001372,2]
[420811050,1776546640670,-155.0,0.00013732,2]
[420811051,1776546640679,-200.0,0.00013753,2]
[420811052,1776546640688,-325.2809594,0.00013765,2]
[420811053,1776546640698,-155.0,0.00013766,2]
[420811054,1776546640707,-455.0,0.00013769,2]
[420811055,1776546640717,-500.0,0.00013778,2]
[420811056,1776546640726,-455.0,0.00013781,2]
[420811057,1776546640736,-155.0,0.00013801,2]
[420811058,1776546640745,-155.0,0.00013835,2]
[420811059,1776546640754,-455.0,0.00013844,2]
[420811060,1776546640763,-10000.0,0.00013853,2]
[420811061,1776546640772,-455.0,0.00013866,2]
[420811062,1776546640782,-154.56635573,0.00013867,2]
[420811063,1776546640791,-327.84,0.00013868,2]
[420811064,1776546640800,-155.0,0.00013869,2]
[420811065,1776546640810,-200.0,0.000139,2]
[420811066,1776546640819,-202.41890357,0.000139,2]
[420811067,1776546640828,-155.0,0.00013903,2]
[420811068,1776546640838,-455.0,0.00013908,2]
[420811069,1776546640847,-155.0,0.00013938,2]
[420811070,1776546640856,-7776.09,0.00013953,2]
[420811071,1776546640865,-213.06571399,0.00013963,2]
[420811072,1776546640875,-461.67526834,0.00013963,2]
[420811073,1776546640884,-557.5788265,0.00013963,2]
[420811074,1776546640894,-500.0,0.00013963,2]
[420811075,1776546640903,-155.0,0.00013972,2]
[420811076,1776546640912,-160.0,0.00013999,2]
[420811077,1776546640922,-200.0,0.00013999,2]
[420811078,1776546640931,-200.0,0.00013999,2]
[420811079,1776546640940,-200.0,0.00013999,2]
[420811080,1776546640950,-200.0,0.00013999,2]
[420811081,1776546640959,-31119.62790372,0.00014,2]
[420811082,1776546640975,-12531.74555364,0.00014,2]
[420811083,1776546640984,-1906.6099644,0.00014,2]
[420811084,1776546640994,-4117.5,0.00014,3]
[420811085,1776546641004,-155.0,0.00014006,2]
[420811086,1776546641013,-155.0,0.0001404,2]
[420811087,1776546641022,-155.0,0.00014075,2]
[420811088,1776546641031,-1906.6099644,0.000141,2]
[420811089,1776546641040,-455.0,0.00014103,2]
[420811090,1776546641050,-160.40671453,0.00014106,2]
[420811091,1776546641059,-155.0,0.00014109,2]
[420811092,1776546641068,-455.0,0.00014118,2]
[420811093,1776546641078,-155.0,0.00014143,2]
[420811094,1776546641087,-161.523221,0.00014148,2]
[420811095,1776546641096,-455.0,0.00014156,2]
[420811096,1776546641105,-455.0,0.00014171,2]
[420811097,1776546641115,-155.0,0.00014177,2]
[420811098,1776546641124,-155.0,0.00014212,2]
[420811099,1776546641134,-455.0,0.00014212,2]
[420811100,1776546641143,-158.417197,0.00014218,2]
[420811101,1776546641153,-1000.0,0.00014221,2]
[420811102,1776546641162,-500.0,0.00014221,2]
[420811103,1776546641171,-1000.0,0.00014221,2]
[420811104,1776546641180,-200.0,0.00014246,2]
[420811105,1776546641194,-155.0,0.00014246,2]
[420811106,1776546641204,-1000.0,0.00014247,2]
[420811107,1776546641214,-1130.635906,0.00014247,2]
[420811108,1776546641224,-1000.0,0.00014247,2]
[420811109,1776546641234,-1061.25376431,0.00014247,2]
[420811110,1776546641243,-1000.0,0.00014247,2]
[420811111,1776546641252,-1000.0,0.00014247,2]
[420811112,1776546641262,-1000.0,0.00014247,2]
[420811113,1776546641271,-557.93123399,0.00014247,2]